Workbook

Sheet 2024-2025 основ. прогр.+гим.кл
F1: Утверждены приказом Министерства образования и науки Республики Татарстан от _____2024 №______
A2: Контрольные цифры приема граждан пдля обучения по образовательным программам среднего профессионального образования на 2024/2025 учебный год в профессиональные образовательные организации, подведомственные Министерству образования и науки Республики Татарстан.
A3: Наименование ПОО | B3: Базовое образование (основное, среднее (общее)) | C3: Код специальности (профессии) | D3: Наименование специальности (профессии) | E3: Проект контрольных цифр приема, чел.
E4: очное | F4: очно-заочное | G4: заочное
A5: Государственное автономное профессиональное учреждение (далее-ГАПОУ) «Казанский строительный колледж» | B5: основное общее | C5: 08.02.01 | D5: Строительство и эксплуатация зданий и сооружений | E5: 65
A6: ГАПОУ «Казанский строительный колледж» | B6: среднее общее | C6: 08.02.01 | D6: Строительство и эксплуатация зданий и сооружений | G6: 25
A7: ГАПОУ «Казанский строительный колледж» | B7: среднее общее | C7: 08.02.14 | D7: Эксплуатация и обслуживание многоквартирного дома | E7: 25
A8: ГАПОУ «Казанский строительный колледж» | B8: основное общее | C8: 08.02.12 | D8: Строительство и эксплуатация автомобильных дорог, аэродромов и городских путей сообщения | E8: 20
A9: ГАПОУ «Казанский строительный колледж» | B9: основное общее | C9: 21.02.19 | D9: Землеустройство | E9: 20
A10: ГАПОУ «Казанский строительный колледж» | B10: основное общее | C10: 08.02.03 | D10: Производство неметаллических строительных изделий и конструкций | E10: 20
A11: ГАПОУ «Казанский строительный колледж» | B11: основное общее | C11: 46.02.01 | D11: Документационное обеспечение управления и архивоведение | E11: 20
A12: ГАПОУ «Казанский строительный колледж» | B12: основное общее | C12: 08.02.14 | D12: Эксплуатация и обслуживание многоквартирного дома | E12: 20
A13: ГАПОУ «Казанский строительный колледж» | B13: среднее общее | C13: 21.02.19 | D13: Землеустройство | E13: 20
A14: ГАПОУ «Казанский строительный колледж» | B14: основное общее | C14: 35.02.12 | D14: Садово-парковое и ландшафтное строительство | E14: 25
A15: ГАПОУ «Казанский строительный колледж» | B15: основное общее | C15: 38.02.01 | D15: Экономика и бухгалтерский учет (по отраслям) | E15: 20
A16: ГАПОУ «Казанский строительный колледж» | B16: основное общее | C16: 08.02.13 | D16: Монтаж и эксплуатация внутренних сантехнических устройств, кондиционирования воздуха и вентиляции | E16: 20
A17: ГАПОУ «Казанский строительный колледж» | B17: основное общее | C17: 08.01.28 | D17: Мастер отделочных строительных и декоративных работ | E17: 40
A18: ГАПОУ «Казанский строительный колледж» | B18: основное общее | C18: 08.01.27 | D18: Мастер общестроительных работ | E18: 25
A19: ГАПОУ «Казанский строительный колледж» | B19: основное общее | C19: 08.01.24 | D19: Мастер столярно-плотничных ,паркетных и стекольных работ | E19: 20
A20: ГАПОУ «Казанский строительный колледж» | B20: основное общее | C20: 15.01.05 | D20: Сварщик (ручной и частично механизированной сварки (наплавки) | E20: 25
A21: ГАПОУ «Казанский строительный колледж» | E21: =SUM(E5:E20) -> 385 | F21: =SUM(F5:F20) -> 0 | G21: 25
A22: ГАПОУ «Международный колледж сервиса» | B22: основное общее | C22: 43.01.09 | D22: Повар, кондитер | E22: 50
A23: ГАПОУ «Международный колледж сервиса» | B23: основное общее | C23: 43.02.15 | D23: Поварское и кондитерское дело | E23: 50
A24: ГАПОУ «Международный колледж сервиса» | B24: основное общее | C24: 43.02.17 | D24: Технологии индустрии красоты | E24: 50
A25: ГАПОУ «Международный колледж сервиса» | B25: основное общее | C25: 43.02.16 | D25: Туризм и гостеприимство | E25: 50
A26: ГАПОУ «Международный колледж сервиса» | B26: основное общее | C26: 38.02.03 | D26: Операционная деятельность в логистике | E26: 25
A27: ГАПОУ «Международный колледж сервиса» | B27: основное общее | C27: 38.02.04 | D27: Коммерция (по отраслям) | E27: 25
A28: ГАПОУ «Международный колледж сервиса» | E28: =SUM(E22:E27) -> 250 | F28: =SUM(F22:F27) -> 0 | G28: 0
A29: ГАПОУ «Казанский колледж строительства, архитектуры и городского хозяйства» | B29: основное общее | C29: 08.02.14 | D29: Эксплуатация и обслуживание многоквартирного дома | E29: 25
A30: ГАПОУ «Казанский колледж строительства, архитектуры и городского хозяйства» | B30: основное общее | C30: 08.02.13 | D30: Монтаж и эксплуатация внутренних сантехнических устройств, кондиционирования воздуха и вентиляции | E30: 25
A31: ГАПОУ «Казанский колледж строительства, архитектуры и городского хозяйства» | B31: основное общее | C31: 08.02.01 | D31: Строительство и эксплуатация зданий и сооружений | E31: 50
A32: ГАПОУ «Казанский колледж строительства, архитектуры и городского хозяйства» | B32: среднее общее | C32: 08.02.01 | D32: Строительство и эксплуатация зданий и сооружений | E32: 25
A33: ГАПОУ «Казанский колледж строительства, архитектуры и городского хозяйства» | B33: основное общее | C33: 22.02.06 | D33: Сварочное производство | E33: 25
A34: ГАПОУ «Казанский колледж строительства, архитектуры и городского хозяйства» | B34: основное общее | C34: 07.02.01 | D34: Архитектура | E34: 25
A35: ГАПОУ «Казанский колледж строительства, архитектуры и городского хозяйства» | B35: основное общее | C35: 38.02.01 | D35: Экономика и бухгалтерский учет (по отраслям) | E35: 25
A36: ГАПОУ «Казанский колледж строительства, архитектуры и городского хозяйства» | B36: основное общее | C36: 38.02.04 | D36: Коммерция (по отраслям) | E36: 25
A37: ГАПОУ «Казанский колледж строительства, архитектуры и городского хозяйства» | B37: основное общее | C37: 39.02.01 | D37: Социальная работа | E37: 25
A38: ГАПОУ «Казанский колледж строительства, архитектуры и городского хозяйства» | B38: основное общее | C38: 08.01.29 | D38: Мастер по ремонту и обслуживанию инженерных систем жилищно-коммунального хозяйства | E38: 20
A39: ГАПОУ «Казанский колледж строительства, архитектуры и городского хозяйства» | E39: =SUM(E29:E38) -> 270 | F39: =SUM(F29:F38) -> 0 | G39: 0
A40: ГАПОУ «Казанский педагогический колледж» | B40: основное общее | C40: 44.02.01 | D40: Дошкольное образование | E40: 100
A41: ГАПОУ «Казанский педагогический колледж» | B41: основное общее | C41: 44.02.02 | D41: Преподавание в начальных классах | E41: 75
A42: ГАПОУ «Казанский педагогический колледж» | B42: основное общее | C42: 49.02.01 | D42: Физическая культура | E42: 25
A43: ГАПОУ «Казанский педагогический колледж» | B43: основное общее | C43: 09.02.07 | D43: Информационные системы и программирование | E43: 25
A44: ГАПОУ «Казанский педагогический колледж» | B44: среднее общее | C44: 44.02.01 | D44: Дошкольное образование | G44: 50
A45: ГАПОУ «Казанский педагогический колледж» | B45: среднее общее | C45: 44.02.02 | D45: Преподавание в начальных классах | G45: 25
A46: ГАПОУ «Казанский педагогический колледж» | E46: =SUM(E40:E45) -> 225 | F46: =SUM(F40:F45) -> 0 | G46: 75
A47: ГАПОУ «Казанский радиомеханический колледж» | B47: основное общее | C47: 11.01.01 | D47: Монтажник радиоэлектронной аппаратуры и приборов | E47: 25
A48: ГАПОУ «Казанский радиомеханический колледж» | B48: основное общее | C48: 15.01.32 | D48: Оператор станков с программным управлением | E48: 25
A49: ГАПОУ «Казанский радиомеханический колледж» | B49: основное общее | C49: 11.02.16 | D49: Монтаж, техническое обслуживание и ремонт электронных приборов и устройств | E49: 50
A50: ГАПОУ «Казанский радиомеханический колледж» | B50: основное общее | C50: 15.02.16 | D50: Технология машиностроения | E50: 25
A51: ГАПОУ «Казанский радиомеханический колледж» | B51: основное общее | C51: 27.02.07 | D51: Управление качеством продукции, процессов и услуг (по отраслям) | E51: 25
A52: ГАПОУ «Казанский радиомеханический колледж» | B52: основное общее | C52: 09.02.01 | D52: Компьютерные системы и комплексы | E52: 25
A53: ГАПОУ «Казанский радиомеханический колледж» | E53: =SUM(E47:E52) -> 175 | F53: =SUM(F47:F52) -> 0 | G53: 0
A54: ГАПОУ «Колледж малого бизнеса и предпринимательства» | B54: основное общее | C54: 43.01.09 | D54: Повар, кондитер | E54: 25
A55: ГАПОУ «Колледж малого бизнеса и предпринимательства» | B55: основное общее | C55: 43.02.15 | D55: Поварское и кондитерское дело | E55: 50
A56: ГАПОУ «Колледж малого бизнеса и предпринимательства» | B56: основное общее | C56: 38.02.01 | D56: Экономика и бухгалтерский учет (по отраслям) | E56: 25
A57: ГАПОУ «Колледж малого бизнеса и предпринимательства» | B57: основное общее | C57: 38.02.04 | D57: Коммерция (по отраслям) | E57: 40
A58: ГАПОУ «Колледж малого бизнеса и предпринимательства» | B58: основное общее | C58: 43.02.17 | D58: Технологии индустрии красоты | E58: 25
A59: ГАПОУ «Колледж малого бизнеса и предпринимательства» | B59: среднее общее | C59: 43.02.17 | D59: Технологии индустрии красоты | E59: 20
A60: ГАПОУ «Колледж малого бизнеса и предпринимательства» | E60: =SUM(E54:E59) -> 185 | F60: =SUM(F54:F59) -> 0 | G60: 0
A61: ГАПОУ «Казанский политехнический колледж» | B61: основное общее | C61: 08.01.29 | D61: Мастер по ремонту и обслуживанию инженерных систем жилищно-коммунального хозяйства | E61: 25
A62: ГАПОУ «Казанский политехнический колледж» | B62: основное общее | C62: 13.01.10 | D62: Электромонтер по ремонту и обслуживанию электрооборудования (по отраслям) | E62: 50
A63: ГАПОУ «Казанский политехнический колледж» | B63: основное общее | C63: 15.01.05 | D63: Сварщик (ручной и частично механизированной сварки (наплавки) | E63: 50
A64: ГАПОУ «Казанский политехнический колледж» | B64: основное общее | C64: 15.01.35 | D64: Мастер слесарных работ | E64: 25
A65: ГАПОУ «Казанский политехнический колледж» | B65: основное общее | C65: 08.02.13 | D65: Монтаж и эксплуатация внутренних сантехнических устройств, кондиционирования воздуха и вентиляции | E65: 50
A66: ГАПОУ «Казанский политехнический колледж» | B66: основное общее | C66: 15.02.06 | D66: Монтаж, техническая эксплуатация и ремонт холодильно-компрессорных и теплонасосных машин и установок (по отраслям) | E66: 25
A67: ГАПОУ «Казанский политехнический колледж» | B67: основное общее | C67: 15.02.16 | D67: Технология машиностроения | E67: 25
A68: ГАПОУ «Казанский политехнический колледж» | B68: основное общее | C68: 19.02.12 | D68: Технология продуктов питания животного происхождения | E68: 25
A69: ГАПОУ «Казанский политехнический колледж» | B69: основное общее | C69: 22.02.06 | D69: Сварочное производство | E69: 25
A70: ГАПОУ «Казанский политехнический колледж» | B70: основное общее | C70: 46.02.01 | D70: Документационное обеспечение управления и архивоведение | E70: 25
A71: ГАПОУ «Казанский политехнический колледж» | E71: =SUM(E61:E70) -> 325 | F71: =SUM(F61:F70) -> 0 | G71: 0
A72: ГАПОУ «Казанский автотранспортный техникум им. А.П.Обыденнова» | B72: основное общее | C72: 23.02.07 | D72: Техническое обслуживание и ремонт двигателей, систем и агрегатов автомобилей | E72: 50
A73: ГАПОУ «Казанский автотранспортный техникум им. А.П.Обыденнова» | B73: среднее общее | C73: 23.02.07 | D73: Техническое обслуживание и ремонт двигателей, систем и агрегатов автомобилей | E73: 25
A74: ГАПОУ «Казанский автотранспортный техникум им. А.П.Обыденнова» | B74: основное общее | C74: 09.02.07 | D74: Информационные системы и программирование | E74: 25
A75: ГАПОУ «Казанский автотранспортный техникум им. А.П.Обыденнова» | B75: основное общее | C75: 08.02.12 | D75: Строительство и эксплуатация автомобильных дорог, аэродромов и городских путей сообщения | E75: 25
A76: ГАПОУ «Казанский автотранспортный техникум им. А.П.Обыденнова» | B76: основное общее | C76: 23.02.04 | D76: Техническая эксплуатация подъемно-транспортных, строительных, дорожных машин и оборудования (по отраслям) | E76: 50
A77: ГАПОУ «Казанский автотранспортный техникум им. А.П.Обыденнова» | B77: основное общее | C77: 23.02.01 | D77: Организация перевозок и управление на транспорте (по видам) | E77: 50
A78: ГАПОУ «Казанский автотранспортный техникум им. А.П.Обыденнова» | B78: основное общее | C78: 23.02.05 | D78: Эксплуатация транспортного электрооборудования и автоматики (по видам транспорта за исключением водного) | E78: 25
A79: ГАПОУ «Казанский автотранспортный техникум им. А.П.Обыденнова» | B79: основное общее | C79: 23.01.09 | D79: Машинист локомотива | E79: 25
A80: ГАПОУ «Казанский автотранспортный техникум им. А.П.Обыденнова» | B80: основное общее | C80: 23.01.17 | D80: Мастер по ремонту и обслуживанию автомобилей | E80: 25
A81: ГАПОУ «Казанский автотранспортный техникум им. А.П.Обыденнова» | B81: основное общее | C81: 23.01.06 | D81: Машинист дорожных и строительных машин | E81: 25
A82: ГАПОУ «Казанский автотранспортный техникум им. А.П.Обыденнова» | E82: =SUM(E72:E81) -> 325 | F82: =SUM(F72:F81) -> 0 | G82: 0
A83: ГАПОУ «Казанский энергетический колледж» | B83: основное общее | C83: 13.02.03 | D83: Электрические станции, сети и системы | E83: 25
A84: ГАПОУ «Казанский энергетический колледж» | B84: среднее общее | C84: 13.02.03 | D84: Электрические станции, сети и системы | E84: 25
A85: ГАПОУ «Казанский энергетический колледж» | B85: основное общее | C85: 13.02.06 | D85: Релейная защита и автоматизация электроэнергетических систем | E85: 25
A86: ГАПОУ «Казанский энергетический колледж» | B86: основное общее | C86: 13.02.01 | D86: Тепловые электрические станции | E86: 50
A87: ГАПОУ «Казанский энергетический колледж» | B87: основное общее | C87: 13.02.07 | D87: Электроснабжение (по отраслям) | E87: 50
A88: ГАПОУ «Казанский энергетический колледж» | B88: основное общее | C88: 13.01.10 | D88: Электромонтер по ремонту и обслуживанию электрооборудования (по отраслям) | E88: 25
A89: ГАПОУ «Казанский энергетический колледж» | B89: основное общее | C89: 08.01.31 | D89: Электромонтажник электрических сетей и электрооборудования | E89: 25
A90: ГАПОУ «Казанский энергетический колледж» | E90: =SUM(E83:E89) -> 225 | F90: =SUM(F83:F89) -> 0 | G90: 0
A91: ГАПОУ «Казанский авиационно-технический колледж имени П.В. Дементьева» | B91: основное общее | C91: 15.02.16 | D91: Технология машиностроения | E91: 50
A92: ГАПОУ «Казанский авиационно-технический колледж имени П.В. Дементьева» | B92: основное общее | C92: 24.02.01 | D92: Производство летательных аппаратов | E92: 50
A93: ГАПОУ «Казанский авиационно-технический колледж имени П.В. Дементьева» | B93: основное общее | C93: 15.02.14 | D93: Оснащение средствами автоматизации технологических процессов и производств (по отраслям) | E93: 50
A94: ГАПОУ «Казанский авиационно-технический колледж имени П.В. Дементьева» | B94: основное общее | C94: 24.02.02 | D94: Производство авиационных двигателей | E94: 25
A95: ГАПОУ «Казанский авиационно-технический колледж имени П.В. Дементьева» | B95: основное общее | C95: 09.02.01 | D95: Компьютерные системы и комплексы | E95: 25
A96: ГАПОУ «Казанский авиационно-технический колледж имени П.В. Дементьева» | B96: основное общее | C96: 09.02.07 | D96: Информационные системы и программирование | E96: 25
A97: ГАПОУ «Казанский авиационно-технический колледж имени П.В. Дементьева» | B97: основное общее | C97: 15.01.35 | D97: Мастер слесарных работ | E97: 25
A98: ГАПОУ «Казанский авиационно-технический колледж имени П.В. Дементьева» | B98: основное общее | C98: 15.01.29 | D98: Контролер станочных и слесарных работ | E98: 25
A99: ГАПОУ «Казанский авиационно-технический колледж имени П.В. Дементьева» | B99: основное общее | C99: 15.01.32 | D99: Оператор станков с программным управлением | E99: 50
A100: ГАПОУ «Казанский авиационно-технический колледж имени П.В. Дементьева» | B100: основное общее | C100: 24.01.01 | D100: Слесарь-сборщик авиационной техники | E100: 50
A101: ГАПОУ «Казанский авиационно-технический колледж имени П.В. Дементьева» | B101: основное общее | C101: 15.01.05 | D101: Сварщик (ручной и частично механизированной сварки (наплавки) | E101: 25
A102: ГАПОУ «Казанский авиационно-технический колледж имени П.В. Дементьева» | B102: основное общее | C102: 13.01.10 | D102: Электромонтер по ремонту и обслуживанию электрооборудования (по отраслям) | E102: 25
A103: ГАПОУ «Казанский авиационно-технический колледж имени П.В. Дементьева» (филиал) | B103: основное общее | C103: 35.01.27 | D103: Мастер сельскохозяйственного производства | E103: 20
A104: ГАПОУ «Казанский авиационно-технический колледж имени П.В. Дементьева» (филиал) | B104: основное общее | C104: 08.01.27 | D104: Мастер общестроительных работ | E104: 20
A105: ГАПОУ «Казанский авиационно-технический колледж имени П.В. Дементьева» (филиал) | B105: основное общее | C105: 38.02.01 | D105: Экономика и бухгалтерский учет (по отраслям) | E105: 20
A106: ГАПОУ «Казанский авиационно-технический колледж имени П.В. Дементьева» | E106: =SUM(E91:E105) -> 485 | F106: =SUM(F91:F105) -> 0 | G106: 0
A107: ГАПОУ «Казанский колледж технологии и дизайна» | B107: основное общее | C107: 29.02.02 | D107: Технология кожи и меха | E107: 20
A108: ГАПОУ «Казанский колледж технологии и дизайна» | B108: основное общее | C108: 09.02.07 | D108: Информационные системы и программирование | E108: 25
A109: ГАПОУ «Казанский колледж технологии и дизайна» | B109: основное общее | C109: 10.02.04 | D109: Обеспечение информационной безопасности телекоммуникационных систем | E109: 25
A110: ГАПОУ «Казанский колледж технологии и дизайна» | B110: основное общее | C110: 38.02.05 | D110: Товароведение и экспертиза качества потребительских товаров | E110: 25
A111: ГАПОУ «Казанский колледж технологии и дизайна» | B111: среднее общее | C111: 38.02.05 | D111: Товароведение и экспертиза качества потребительских товаров | E111: 25
A112: ГАПОУ «Казанский колледж технологии и дизайна» | B112: основное общее | C112: 29.02.10 | D112: Конструирование, моделирование и технология изготовления изделий легкой промышленности (по видам) | E112: 65
A113: ГАПОУ «Казанский колледж технологии и дизайна» | B113: среднее общее | C113: 29.02.10 | D113: Конструирование, моделирование и технология изготовления изделий легкой промышленности (по видам) | E113: 25
A114: ГАПОУ «Казанский колледж технологии и дизайна» | B114: основное общее | C114: 29.02.05 | D114: Технология текстильных изделий (по видам) | E114: 20
A115: ГАПОУ «Казанский колледж технологии и дизайна» | B115: основное общее | C115: 29.01.17 | D115: Оператор вязально-швейного оборудования | E115: 25
A116: ГАПОУ «Казанский колледж технологии и дизайна» | E116: =SUM(E107:E115) -> 255 | F116: =SUM(F107:F115) -> 0 | G116: 0
A117: ГАПОУ «Кукморский аграрный колледж» | B117: основное общее | C117: 35.02.16 | D117: Эксплуатация и ремонт сельскохозяйственной техники и оборудования | E117: 25
A118: ГАПОУ «Кукморский аграрный колледж» | B118: основное общее | C118: 35.02.05 | D118: Агрономия | E118: 20
A119: ГАПОУ «Кукморский аграрный колледж» | B119: основное общее | C119: 08.02.08 | D119: Монтаж и эксплуатация оборудования и систем газоснабжения | E119: 25
A120: ГАПОУ «Кукморский аграрный колледж» | B120: основное общее | C120: 43.01.09 | D120: Повар, кондитер | E120: 25
A121: ГАПОУ «Кукморский аграрный колледж» | B121: основное общее | C121: 35.01.27 | D121: Мастер сельскохозяйственного производства | E121: 25
A122: ГАПОУ «Кукморский аграрный колледж» | B122: основное общее | C122: 23.01.17 | D122: Мастер по ремонту и обслуживанию автомобилей | E122: 20
A123: ГАПОУ «Кукморский аграрный колледж» | B123: основное общее | C123: 29.01.07 | D123: Портной | E123: 20
A124: ГАПОУ «Кукморский аграрный колледж» | E124: =SUM(E117:E123) -> 160 | F124: =SUM(F117:F123) -> 0 | G124: 0
A125: ГАПОУ «Аксубаевский техникум универсальных технологий» | B125: основное общее | C125: 43.02.15 | D125: Поварское и кондитерское дело | E125: 20
A126: ГАПОУ «Аксубаевский техникум универсальных технологий» | B126: основное общее | C126: 22.02.06 | D126: Сварочное производство | E126: 20
A127: ГАПОУ «Аксубаевский техникум универсальных технологий» | B127: основное общее | C127: 23.02.07 | D127: Техническое обслуживание и ремонт двигателей, систем и агрегатов автомобилей | E127: 40
A128: ГАПОУ «Аксубаевский техникум универсальных технологий» | B128: основное общее | C128: 35.02.16 | D128: Эксплуатация и ремонт сельскохозяйственной техники и оборудования | E128: 20
A129: ГАПОУ «Аксубаевский техникум универсальных технологий» | E129: =SUM(E125:E128) -> 100 | F129: =SUM(F125:F128) -> 0 | G129: 0
A130: ГАПОУ «Колледж нефтехимии и нефтепереработки имени Н.В. Лемаева» | B130: основное общее | C130: 18.01.05 | D130: Аппаратчик – оператор производства неорганических веществ | E130: 50
A131: ГАПОУ «Колледж нефтехимии и нефтепереработки имени Н.В. Лемаева» | B131: среднее общее | C131: 18.01.05 | D131: Аппаратчик – оператор производства неорганических веществ | E131: 25
A132: ГАПОУ «Колледж нефтехимии и нефтепереработки имени Н.В. Лемаева» | B132: основное общее | C132: 18.01.27 | D132: Машинист технологических насосов и компрессоров | E132: 25
A133: ГАПОУ «Колледж нефтехимии и нефтепереработки имени Н.В. Лемаева» | B133: основное общее | C133: 15.01.20 | D133: Слесарь по контрольно-измерительным приборам и автоматике | E133: 25
A134: ГАПОУ «Колледж нефтехимии и нефтепереработки имени Н.В. Лемаева» | B134: основное общее | C134: 15.01.05 | D134: Сварщик (ручной и частично механизированной сварки (наплавки) | E134: 25
A135: ГАПОУ «Колледж нефтехимии и нефтепереработки имени Н.В. Лемаева» | B135: основное общее | C135: 18.01.28 | D135: Оператор нефтепереработки | E135: 25
A136: ГАПОУ «Колледж нефтехимии и нефтепереработки имени Н.В. Лемаева» | B136: основное общее | C136: 15.01.35 | D136: Мастер слесарных работ | E136: 25
A137: ГАПОУ «Колледж нефтехимии и нефтепереработки имени Н.В. Лемаева» | B137: основное общее | C137: 13.01.10 | D137: Электромонтер по ремонту и обслуживанию электрооборудования (по отраслям) | E137: 25
A138: ГАПОУ «Колледж нефтехимии и нефтепереработки имени Н.В. Лемаева» | B138: основное общее | C138: 18.01.02 | D138: Лаборант-эколог | E138: 25
A139: ГАПОУ «Колледж нефтехимии и нефтепереработки имени Н.В. Лемаева» | B139: основное общее | C139: 18.02.06 | D139: Химическая технология органических веществ | E139: 150
A140: ГАПОУ «Колледж нефтехимии и нефтепереработки имени Н.В. Лемаева» | B140: основное общее | C140: 15.02.12 | D140: Монтаж, техническое обслуживание и ремонт промышленного оборудования (по отраслям) | E140: 50
A141: ГАПОУ «Колледж нефтехимии и нефтепереработки имени Н.В. Лемаева» | B141: основное общее | C141: 13.02.11 | D141: Техническая эксплуатация и обслуживание электрического и электромеханического оборудования (по отраслям) | E141: 50
A142: ГАПОУ «Колледж нефтехимии и нефтепереработки имени Н.В. Лемаева» | B142: основное общее | C142: 18.02.09 | D142: Переработка нефти и газа | E142: 25
A143: ГАПОУ «Колледж нефтехимии и нефтепереработки имени Н.В. Лемаева» | B143: основное общее | C143: 09.02.07 | D143: Информационные системы и программирование | E143: 25
A144: ГАПОУ «Колледж нефтехимии и нефтепереработки имени Н.В. Лемаева» | B144: основное общее | C144: 15.02.14 | D144: Оснащение средствами автоматизации технологических процессов и производств (по отраслям) | E144: 75
A145: ГАПОУ «Колледж нефтехимии и нефтепереработки имени Н.В. Лемаева» | E145: =SUM(E130:E144) -> 625 | F145: =SUM(F130:F144) -> 0 | G145: 0
A146: ГАПОУ «Дрожжановский техникум отраслевых технологий» | B146: основное общее | C146: 23.02.07 | D146: Техническое обслуживание и ремонт двигателей, систем и агрегатов автомобилей | E146: 25
A147: ГАПОУ «Дрожжановский техникум отраслевых технологий» | B147: основное общее | C147: 35.02.16 | D147: Эксплуатация и ремонт сельскохозяйственной техники и оборудования | E147: 25
A148: ГАПОУ «Дрожжановский техникум отраслевых технологий» | B148: основное общее | C148: 43.02.15 | D148: Поварское и кондитерское дело | E148: 20
A149: ГАПОУ «Дрожжановский техникум отраслевых технологий» | E149: =SUM(E146:E148) -> 70 | F149: =SUM(F146:F148) -> 0 | G149: 0
A150: ГАПОУ «Буинский ветеринарный техникум» | B150: основное общее | C150: 36.02.01 | D150: Ветеринария | E150: 25
A151: ГАПОУ «Буинский ветеринарный техникум» | B151: основное общее | C151: 38.02.01 | D151: Экономика и бухгалтерский учет (по отраслям) | E151: 25
A152: ГАПОУ «Буинский ветеринарный техникум» | B152: основное общее | C152: 40.02.02 | D152: Правоохранительная деятельность | E152: 25
A153: ГАПОУ «Буинский ветеринарный техникум» | B153: основное общее | C153: 09.02.07 | D153: Информационные системы и программирование | E153: 25
A154: ГАПОУ «Буинский ветеринарный техникум» | B154: основное общее | C154: 08.02.08 | D154: Монтаж и эксплуатация оборудования и систем газоснабжения | E154: 25
A155: ГАПОУ «Буинский ветеринарный техникум» | B155: основное общее | C155: 43.01.09 | D155: Повар, кондитер | E155: 25
A156: ГАПОУ «Буинский ветеринарный техникум» | B156: основное общее | C156: 08.01.27 | D156: Мастер общестроительных работ | E156: 25
A157: ГАПОУ «Буинский ветеринарный техникум» | B157: основное общее | C157: 13.01.10 | D157: Электромонтер по ремонту и обслуживанию электрооборудования (по отраслям) | E157: 25
A158: ГАПОУ «Буинский ветеринарный техникум» | E158: =SUM(E150:E157) -> 200 | F158: =SUM(F150:F157) -> 0 | G158: 0
A159: ГАПОУ «Лаишевский технико-экономический техникум» | B159: основное общее | C159: 21.02.19 | D159: Землеустройство | E159: 25
A160: ГАПОУ «Лаишевский технико-экономический техникум» | B160: основное общее | C160: 25.02.01 | D160: Техническая эксплуатация летательных аппаратов и двигателей | E160: 20
A161: ГАПОУ «Лаишевский технико-экономический техникум» | B161: основное общее | C161: 25.02.06 | D161: Производство и обслуживние авиационной техники | E161: 20
A162: ГАПОУ «Лаишевский технико-экономический техникум» | B162: основное общее | C162: 25.02.08 | D162: Эксплуатация беспилотных авиационных систем | E162: 25
A163: ГАПОУ «Лаишевский технико-экономический техникум» | B163: основное общее | C163: 38.02.01 | D163: Экономика и бухгалтерский учет (по отраслям) | E163: 20
A164: ГАПОУ «Лаишевский технико-экономический техникум» | B164: основное общее | C164: 40.02.04 | D164: Юриспруденция | E164: 25
A165: ГАПОУ «Лаишевский технико-экономический техникум» | B165: основное общее | C165: 40.02.02 | D165: Правоохранительная деятельность | E165: 40
A166: ГАПОУ «Лаишевский технико-экономический техникум» | E166: =SUM(E159:E165) -> 175 | F166: =SUM(F159:F165) -> 0 | G166: 0
A167: ГАПОУ «Атнинский сельскохозяйственный техникум им. Габдуллы Тукая» | B167: основное общее | C167: 08.01.31 | D167: Электромонтажник электрических сетей и электрооборудования | E167: 20
A168: ГАПОУ «Атнинский сельскохозяйственный техникум им. Габдуллы Тукая» | B168: основное общее | C168: 35.02.16 | D168: Эксплуатация и ремонт сельскохозяйственной техники и оборудования | E168: 50
A169: ГАПОУ «Атнинский сельскохозяйственный техникум им. Габдуллы Тукая» | B169: основное общее | C169: 36.02.01 | D169: Ветеринария | E169: 20
A170: ГАПОУ «Атнинский сельскохозяйственный техникум им. Габдуллы Тукая» | B170: основное общее | C170: 38.02.01 | D170: Экономика и бухгалтерский учет (по отраслям) | E170: 25
A171: ГАПОУ «Атнинский сельскохозяйственный техникум им. Габдуллы Тукая» | B171: среднее общее | C171: 38.02.01 | D171: Экономика и бухгалтерский учет (по отраслям) | E171: 0 | G171: 15
A172: ГАПОУ «Атнинский сельскохозяйственный техникум им. Габдуллы Тукая» | B172: основное общее | C172: 43.02.15 | D172: Поварское и кондитерское дело | E172: 25
A173: ГАПОУ «Атнинский сельскохозяйственный техникум им. Габдуллы Тукая» | E173: =SUM(E167:E172) -> 140 | F173: =SUM(F167:F172) -> 0 | G173: 15
A174: ГАПОУ «Арский агропромышленный профессиональный колледж» | B174: основное общее | C174: 35.02.16 | D174: Эксплуатация и ремонт сельскохозяйственной техники и оборудования | E174: 20
A175: ГАПОУ «Арский агропромышленный профессиональный колледж» | B175: основное общее | C175: 43.02.15 | D175: Поварское и кондитерское дело | E175: 20
A176: ГАПОУ «Арский агропромышленный профессиональный колледж» | B176: основное общее | C176: 23.02.07 | D176: Техническое обслуживание и ремонт двигателей, систем и агрегатов автомобилей | E176: 20
A177: ГАПОУ «Арский агропромышленный профессиональный колледж» | B177: основное общее | C177: 40.02.02 | D177: Правоохранительная деятельность | E177: 20
A178: ГАПОУ «Арский агропромышленный профессиональный колледж» (филиал 1) | B178: основное общее | C178: 08.01.27 | D178: Мастер общестроительных работ | E178: 20
A179: ГАПОУ «Арский агропромышленный профессиональный колледж» (филиал 2) | B179: основное общее | C179: 35.01.27 | D179: Мастер сельскохозяйственного производства | E179: 40
A180: ГАПОУ «Арский агропромышленный профессиональный колледж» (филиал 2) | B180: основное общее | C180: 35.01.23 | D180: Хозяйка усадьбы | E180: 20
A181: ГАПОУ «Арский агропромышленный профессиональный колледж» | E181: =SUM(E174:E180) -> 160 | F181: =SUM(F174:F180) -> 0 | G181: 0
A182: ГАПОУ «Апастовский аграрный колледж» | B182: основное общее | C182: 43.01.09 | D182: Повар, кондитер | E182: 20
A183: ГАПОУ «Апастовский аграрный колледж» | B183: основное общее | C183: 35.02.16 | D183: Эксплуатация и ремонт сельскохозяйственной техники и оборудования | E183: 25
A184: ГАПОУ «Апастовский аграрный колледж» | B184: основное общее | C184: 40.02.02 | D184: Правоохранительная деятельность | E184: 25
A185: ГАПОУ «Апастовский аграрный колледж» | B185: основное общее | C185: 13.01.10 | D185: Электромонтер по ремонту и обслуживанию электрооборудования (по отраслям) | E185: 20
A186: ГАПОУ «Апастовский аграрный колледж» | B186: среднее общее | C186: 40.02.02 | D186: Правоохранительная деятельность | G186: 20
A187: ГАПОУ «Апастовский аграрный колледж» | E187: =SUM(E182:E186) -> 90 | F187: =SUM(F182:F186) -> 0 | G187: 20
A188: ГАПОУ «Рыбно - Слободский агротехнический техникум» | B188: основное общее | C188: 43.01.09 | D188: Повар, кондитер | E188: 20
A189: ГАПОУ «Рыбно - Слободский агротехнический техникум» | B189: основное общее | C189: 35.02.16 | D189: Эксплуатация и ремонт сельскохозяйственной техники и оборудования | E189: 20
A190: ГАПОУ «Рыбно - Слободский агротехнический техникум» | B190: основное общее | C190: 23.02.07 | D190: Техническое обслуживание и ремонт двигателей, систем и агрегатов автомобилей | E190: 20
A191: ГАПОУ «Рыбно - Слободский агротехнический техникум» | B191: основное общее | C191: 35.01.27 | D191: Мастер сельскохозяйственного производства | E191: 20
A192: ГАПОУ «Рыбно - Слободский агротехнический техникум» | E192: =SUM(E188:E191) -> 80 | F192: =SUM(F188:F191) -> 0 | G192: 0
A193: ГАПОУ «Арский педагогический колледж им.Г.Тукая» | B193: основное общее | C193: 44.02.01 | D193: Дошкольное образование | E193: 50
A194: ГАПОУ «Арский педагогический колледж им.Г.Тукая» | B194: основное общее | C194: 44.02.02 | D194: Преподавание в начальных классах | E194: 50
A195: ГАПОУ «Арский педагогический колледж им.Г.Тукая» | B195: основное общее | C195: 49.02.01 | D195: Физическая культура | E195: 25
A196: ГАПОУ «Арский педагогический колледж им.Г.Тукая» | B196: основное общее | C196: 53.02.01 | D196: Музыкальное образование | E196: 20
A197: ГАПОУ «Арский педагогический колледж им.Г.Тукая» | B197: основное общее | C197: 09.02.07 | D197: Информационные системы и программирование | E197: 25
A198: ГАПОУ "Арский педагогический колледж им.Г.Тукая | B198: гимназические классы | C198: - | D198: 7-9 классы (гимназические классы) | E198: 20
A199: ГАПОУ "Арский педагогический колледж им.Г.Тукая | B199: гимназические классы | C199: - | D199: Проживание в интернате (общежитии) | E199: 13
A200: ГАПОУ «Арский педагогический колледж им.Г.Тукая» | E200: =SUM(E193:E199) -> 203 | F200: =SUM(F193:F197) -> 0 | G200: 0
... 345 more rows
